bitfinex-derivatives/quotes_BNBF0:USTF0_20250603
["timestamp","ask_amount","ask_price","bid_price","bid_amount"]
[1748982376535,1.02181862,661.78,661.47,0.30235687]
[1748982376734,1.02181862,661.77,661.47,0.30235687]
[1748982376935,1.02181862,661.76,661.47,0.30235687]
[1748982377132,1.02181862,661.75,661.47,0.30235687]
[1748982377335,1.02181862,661.74,661.47,0.30235687]
[1748982377535,1.02181862,661.73,661.47,0.30235687]
[1748982377840,1.02181862,661.72,661.47,0.30235687]
[1748982378040,1.02181862,661.71,661.47,0.30235687]
[1748982378244,1.02181862,661.7,661.47,0.30235687]
[1748982378437,1.02181862,661.69,661.47,0.30235687]
[1748982378637,1.02181862,661.68,661.47,0.30235687]
[1748982378841,1.11994905,661.8,661.47,0.30235687]
[1748982378842,1.02181862,661.67,661.47,0.30235687]
[1748982379140,1.02181862,661.66,661.47,0.30235687]
[1748982379343,1.02181862,661.65,661.47,0.30235687]
[1748982379641,1.02181862,661.64,661.47,0.30235687]
[1748982379839,1.11994905,661.81,661.47,0.30235687]
[1748982379840,1.02181862,661.63,661.47,0.30235687]
[1748982380041,1.02298293,661.62,661.47,0.30235687]
[1748982380241,1.02298293,661.61,661.47,0.30235687]
[1748982380441,1.02298293,661.6,661.47,0.30235687]
[1748982380640,1.1199487,661.82,661.47,0.30235687]
[1748982380835,1.0229548,661.81,661.47,0.30235687]
[1748982381040,1.0229548,661.8,661.47,0.30235687]
[1748982381241,3.71005592,662.55,661.47,0.30235687]
[1748982381242,1.0229548,661.79,661.47,0.30235687]
[1748982381444,1.0229548,661.78,661.47,0.30235687]
[1748982381644,1.0229548,661.77,661.47,0.30235687]
[1748982381837,1.0229548,661.76,661.47,0.30235687]
[1748982382145,1.0229548,661.75,661.47,0.30235687]
[1748982382336,1.0229548,661.74,661.47,0.30235687]
[1748982382535,1.0229548,661.73,661.47,0.30235687]
[1748982382743,1.0229548,661.72,661.47,0.30235687]
[1748982382938,1.0229548,661.71,661.47,0.30235687]
[1748982383143,1.0229548,661.7,661.47,0.30235687]
[1748982383339,1.0229548,661.69,661.47,0.30235687]
[1748982383541,1.0229548,661.68,661.47,0.30235687]
[1748982383738,1.0229548,661.67,661.47,0.30235687]
[1748982383938,1.0229548,661.66,661.47,0.30235687]
[1748982384144,1.0229548,661.65,661.47,0.30235687]
[1748982384343,1.0229548,661.64,661.47,0.30235687]
[1748982384539,1.0229548,661.63,661.47,0.30235687]
[1748982384742,1.0229548,661.62,661.47,0.30235687]
[1748982385045,1.0229548,661.61,661.47,0.30235687]
[1748982385244,1.0229548,661.6,661.47,0.30235687]
[1748982385444,1.0229548,661.59,661.47,0.30235687]
[1748982385639,1.0229548,661.58,661.47,0.30235687]
[1748982385840,1.1199487,661.82,661.47,0.30235687]
[1748982386144,1.1199487,661.74,661.47,0.30235687]
[1748982386344,1.02265785,661.73,661.47,0.30235687]
[1748982386543,1.02265785,661.72,661.47,0.30235687]
[1748982386742,1.02265785,661.71,661.47,0.30235687]
[1748982386940,1.02265785,661.7,661.47,0.30235687]
[1748982387142,1.02265785,661.69,661.47,0.30235687]
[1748982387344,1.02265785,661.68,661.47,0.30235687]
[1748982387645,1.02265785,661.67,661.47,0.30235687]
[1748982387841,1.02199041,661.66,661.47,0.30235687]
[1748982388043,1.02199041,661.65,661.47,0.30235687]
[1748982388242,1.02199041,661.64,661.47,0.30235687]
[1748982388441,1.02199041,661.63,661.47,0.30235687]
[1748982388646,1.02199041,661.62,661.47,0.30235687]
[1748982388843,1.02199041,661.61,661.47,0.30235687]
[1748982389047,1.02199041,661.6,661.47,0.30235687]
[1748982389245,1.02199041,661.59,661.47,0.30235687]
[1748982389450,1.02199041,661.58,661.47,0.30235687]
[1748982389748,1.02199041,661.57,661.47,0.30235687]
[1748982389948,1.02199041,661.56,661.47,0.30235687]
[1748982390149,1.02199041,661.55,661.47,0.30235687]
[1748982390351,1.02199041,661.54,661.47,0.30235687]
[1748982390550,1.02199041,661.53,661.47,0.30235687]
[1748982390744,1.02199041,661.52,661.47,0.30235687]
[1748982390951,1.11917029,661.76,661.47,0.30235687]
[1748982391145,1.02278326,661.75,661.47,0.30235687]
[1748982391450,1.02278326,661.74,661.47,0.30235687]
[1748982391750,1.0226884,661.73,661.47,0.30235687]
[1748982391951,1.0226884,661.72,661.47,0.30235687]
[1748982392252,1.0226884,661.71,661.47,0.30235687]
[1748982392552,1.0226884,661.7,661.47,0.30235687]
[1748982392851,1.0226884,661.69,661.47,0.30235687]
[1748982393049,1.11862133,661.76,661.47,0.30235687]
[1748982393050,1.0226884,661.68,661.47,0.30235687]
[1748982393245,1.0226884,661.67,661.47,0.30235687]
[1748982393449,1.0226884,661.66,661.47,0.30235687]
[1748982393650,1.0226884,661.65,661.47,0.30235687]
[1748982393855,1.0226884,661.64,661.47,0.30235687]
[1748982394049,1.0226884,661.63,661.47,0.30235687]
[1748982394249,1.0226884,661.62,661.47,0.30235687]
[1748982394449,1.0226884,661.61,661.47,0.30235687]
[1748982394650,1.0226884,661.6,661.47,0.30235687]
[1748982394847,1.0226884,661.59,661.47,0.30235687]
[1748982395051,1.0226884,661.58,661.47,0.30235687]
[1748982395247,1.0226884,661.57,661.47,0.30235687]
[1748982395452,1.0226884,661.56,661.47,0.30235687]
[1748982395651,1.0226884,661.55,661.47,0.30235687]
[1748982395850,1.02235359,661.54,661.47,0.30235687]
[1748982396150,1.02235359,661.53,661.47,0.30235687]
[1748982396345,1.1183141,661.78,661.47,0.30235687]
[1748982396548,1.02234463,661.77,661.47,0.30235687]
[1748982396749,1.02234463,661.76,661.47,0.30235687]
[1748982396949,1.02234463,661.75,661.47,0.30235687]
[1748982397149,1.02234463,661.74,661.47,0.30235687]
[1748982397451,1.02234463,661.73,661.47,0.30235687]
[1748982397651,1.02234463,661.72,661.47,0.30235687]
[1748982397851,1.02234463,661.71,661.47,0.30235687]
[1748982398047,1.1183141,661.78,661.47,0.30235687]
[1748982398048,1.02234463,661.7,661.47,0.30235687]
[1748982398246,1.02234463,661.69,661.47,0.30235687]
[1748982398447,1.02234463,661.68,661.47,0.30235687]
[1748982398648,1.02234463,661.67,661.47,0.30235687]
[1748982398847,1.1183141,661.78,661.47,0.30235687]
[1748982398848,1.02234463,661.66,661.47,0.30235687]
[1748982399047,1.02234463,661.65,661.47,0.30235687]
[1748982399248,1.02234463,661.64,661.47,0.30235687]
[1748982399447,1.1183141,661.78,661.47,0.30235687]
[1748982399448,1.02234463,661.63,661.47,0.30235687]
[1748982399648,1.48806455,661.92,661.47,0.30235687]
[1748982399951,1.1180912,661.78,661.47,0.30235687]
[1748982400153,1.1180912,661.76,661.47,0.30235687]
[1748982400351,1.02265033,661.75,661.47,0.30235687]
[1748982400651,1.02265033,661.74,661.47,0.30235687]
[1748982400854,1.02265033,661.73,661.47,0.30235687]
[1748982401053,1.02265033,661.72,661.47,0.30235687]
[1748982401257,1.02265033,661.71,661.47,0.30235687]
[1748982401456,1.02265033,661.7,661.47,0.30235687]
[1748982401757,1.02265033,661.69,661.47,0.30235687]
[1748982401956,1.02265033,661.68,661.47,0.30235687]
[1748982402255,1.02265033,661.67,661.47,0.30235687]
[1748982402455,2.23209683,662.0,661.47,0.30235687]
[1748982402456,1.02265033,661.66,661.47,0.30235687]
[1748982402651,1.02265033,661.65,661.47,0.30235687]
[1748982402853,1.02265033,661.64,661.47,0.30235687]
[1748982403051,1.02265033,661.63,661.47,0.30235687]
[1748982403254,1.02265033,661.62,661.47,0.30235687]
[1748982403466,1.02265033,661.61,661.47,0.30235687]
[1748982403757,1.02265033,661.6,661.47,0.30235687]
[1748982403950,1.02265033,661.59,661.47,0.30235687]
[1748982404154,1.02265033,661.58,661.47,0.30235687]
[1748982404353,1.02265033,661.57,661.47,0.30235687]
[1748982404555,1.02265033,661.56,661.47,0.30235687]
[1748982404755,3.71005592,662.61,661.47,0.30235687]
[1748982404756,1.02265033,661.55,661.47,0.30235687]
[1748982404958,1.02265033,661.54,661.47,0.30235687]
[1748982405257,1.02265033,661.53,661.47,0.30235687]
[1748982405557,1.02265033,661.52,661.47,0.30235687]
[1748982405750,1.02265033,661.51,661.47,0.30235687]
[1748982405953,1.02265033,661.5,661.47,0.30235687]
[1748982406154,1.02265033,661.49,661.47,0.30235687]
[1748982406356,1.02265033,661.48,661.47,0.30235687]
[1748982407558,1.02097385,661.48,661.47,0.30235687]
[1748982411560,1.01993961,661.48,661.47,0.30235687]
[1748982415565,1.01951174,661.48,661.47,0.30235687]
[1748982416365,1.11549843,661.71,661.47,0.30235687]
[1748982416567,1.01934023,661.7,661.47,0.30235687]
[1748982416760,1.01934023,661.69,661.47,0.30235687]
[1748982416961,1.01934023,661.68,661.47,0.30235687]
[1748982417165,1.01934023,661.67,661.47,0.30235687]
[1748982417362,1.01934023,661.66,661.47,0.30235687]
[1748982417560,1.01934023,661.65,661.47,0.30235687]
[1748982417762,1.01934023,661.64,661.47,0.30235687]
[1748982417964,1.01934023,661.63,661.47,0.30235687]
[1748982418163,1.01934023,661.62,661.47,0.30235687]
[1748982418465,1.01934023,661.61,661.47,0.30235687]
[1748982418663,1.01934023,661.6,661.47,0.30235687]
[1748982418862,1.01934023,661.59,661.47,0.30235687]
[1748982419166,1.01934023,661.58,661.47,0.30235687]
[1748982419467,1.11549843,661.7,661.47,0.30235687]
[1748982419468,1.01920387,661.57,661.47,0.30235687]
[1748982419666,1.01920387,661.56,661.47,0.30235687]
[1748982419966,1.01920387,661.55,661.47,0.30235687]
[1748982420162,1.11522034,661.71,661.47,0.30235687]
[1748982420163,1.01920387,661.54,661.47,0.30235687]
[1748982420368,1.01920387,661.53,661.47,0.30235687]
[1748982420669,1.01920387,661.52,661.47,0.30235687]
[1748982420966,1.01920387,661.51,661.47,0.30235687]
[1748982421166,1.01920387,661.5,661.47,0.30235687]
[1748982421366,1.01920387,661.49,661.47,0.30235687]
[1748982421666,1.11522034,661.71,661.47,0.30235687]
[1748982421967,1.01901292,661.7,661.47,0.30235687]
[1748982422167,1.01899266,661.69,661.47,0.30235687]
[1748982422363,1.01899266,661.68,661.47,0.30235687]
[1748982422568,1.01899266,661.67,661.47,0.30235687]
[1748982422769,1.01899266,661.66,661.47,0.30235687]
[1748982423067,1.115006,661.71,661.47,0.30235687]
[1748982423068,1.01899266,661.65,661.47,0.30235687]
[1748982423268,1.01899266,661.64,661.47,0.30235687]
[1748982423470,1.01929699,661.63,661.47,0.30235687]
[1748982423669,1.01929699,661.62,661.47,0.30235687]
[1748982423869,1.01929699,661.61,661.47,0.30235687]
[1748982424070,1.01929699,661.6,661.47,0.30235687]
[1748982424373,1.01929699,661.59,661.47,0.30235687]
[1748982424567,1.01929699,661.58,661.47,0.30235687]
[1748982424768,1.11501546,661.71,661.47,0.30235687]
[1748982424769,1.01929699,661.57,661.47,0.30235687]
[1748982424967,1.01929699,661.56,661.47,0.30235687]
[1748982425173,1.01929699,661.55,661.47,0.30235687]
[1748982425373,1.01929699,661.54,661.47,0.30235687]
[1748982425674,1.01929699,661.53,661.47,0.30235687]
[1748982425873,1.01929699,661.52,661.47,0.30235687]
[1748982426074,1.48806455,661.82,661.47,0.30235687]
[1748982426274,1.11492738,661.69,661.47,0.30235687]
[1748982426475,1.11492738,661.67,661.47,0.30235687]
[1748982426671,1.01914962,661.66,661.47,0.30235687]
[1748982426877,1.01914962,661.65,661.47,0.30235687]
[1748982427074,1.01914962,661.64,661.47,0.30235687]
[1748982427275,1.01914962,661.63,661.47,0.30235687]
[1748982427470,1.11492738,661.67,661.47,0.30235687]
[1748982427471,1.01914962,661.62,661.47,0.30235687]
[1748982427673,1.01914962,661.61,661.47,0.30235687]
[1748982427876,1.01914962,661.6,661.47,0.30235687]
[1748982428077,1.01914962,661.59,661.47,0.30235687]
[1748982428381,1.01914962,661.58,661.47,0.30235687]
[1748982428678,1.01914962,661.57,661.47,0.30235687]
[1748982428877,1.01914962,661.56,661.47,0.30235687]
[1748982429075,1.01914962,661.55,661.47,0.30235687]
[1748982429274,1.01914962,661.54,661.47,0.30235687]
[1748982429474,1.01914962,661.53,661.47,0.30235687]
[1748982429677,1.01914962,661.52,661.47,0.30235687]
[1748982429878,1.01914962,661.51,661.47,0.30235687]
[1748982430079,1.01997789,661.5,661.47,0.30235687]
[1748982430278,1.01997789,661.49,661.47,0.30235687]
[1748982430473,1.01997789,661.48,661.47,0.30235687]
[1748982433483,1.48806455,661.8,661.47,0.30235687]
[1748982433685,1.11434161,661.64,661.47,0.30235687]
[1748982433883,1.11434161,661.58,661.47,0.30235687]
[1748982434082,1.02586069,661.57,661.47,0.30235687]
[1748982434279,1.02586069,661.56,661.47,0.30235687]
[1748982434585,1.02586069,661.55,661.47,0.30235687]
[1748982434784,1.02586069,661.54,661.47,0.30235687]
[1748982434977,1.02586069,661.53,661.47,0.30235687]
[1748982435177,1.02586069,661.52,661.47,0.30235687]
[1748982435379,1.02586069,661.51,661.47,0.30235687]
[1748982435583,1.02586069,661.5,661.47,0.30235687]
[1748982435888,1.02586069,661.49,661.47,0.30235687]
[1748982436083,1.02586069,661.48,661.47,0.30235687]
[1748982437586,1.0242489,661.48,661.47,0.30235687]
[1748982441390,1.02394116,661.48,661.47,0.30235687]
[1748982442785,1.02444496,661.48,661.47,0.30235687]
[1748982444691,1.48806455,661.71,661.47,0.30235687]
[1748982444898,1.11515624,661.54,661.47,0.30235687]
[1748982445089,1.11515624,661.51,661.47,0.30235687]
[1748982445286,1.02551005,661.5,661.47,0.30235687]
[1748982445486,1.02551005,661.49,661.47,0.30235687]
[1748982445685,1.02551005,661.48,661.47,0.30235687]
[1748982447492,1.02551005,661.48,660.51,0.26324847]
[1748982447688,1.11384171,661.43,660.53,0.30278715]
[1748982447891,1.02551005,661.42,660.53,0.30278715]
[1748982448194,1.02551005,661.41,660.53,0.30278715]
[1748982448493,1.02272734,661.4,660.53,0.30278715]
[1748982448691,1.02272734,661.39,660.53,0.30278715]
[1748982448891,1.02272734,661.38,660.53,0.30278715]
[1748982449092,1.02272734,661.37,660.53,0.30278715]
[1748982449293,1.02272734,661.36,660.53,0.30278715]
[1748982449492,3.71005592,662.51,660.53,0.30278715]
[1748982449493,1.02272734,661.35,660.53,0.30278715]
[1748982449793,1.02272734,661.34,660.53,0.30278715]
[1748982449990,1.02272734,661.33,660.53,0.30278715]
[1748982450196,1.02272734,661.32,660.53,0.30278715]
[1748982450387,1.02272734,661.31,660.53,0.30278715]
[1748982450589,1.02272734,661.3,660.53,0.30278715]
[1748982450789,1.02272734,661.29,660.53,0.30278715]
[1748982450994,1.02272734,661.28,660.53,0.30278715]
[1748982451193,1.02272734,661.27,660.53,0.30278715]
[1748982451391,1.02272734,661.26,660.53,0.30278715]
[1748982451596,1.02272734,661.25,660.53,0.30278715]
[1748982451798,1.02272734,661.24,660.53,0.30278715]
[1748982452000,1.02272734,661.23,660.53,0.30278715]
[1748982452197,1.02272734,661.22,660.53,0.30278715]
[1748982452500,1.02018197,661.21,660.53,0.30278715]
[1748982452696,1.02018197,661.2,660.53,0.30278715]
[1748982452893,1.02018197,661.19,660.53,0.30278715]
[1748982453097,1.02018197,661.18,660.53,0.30278715]
[1748982453299,1.02018197,661.17,660.53,0.30278715]
[1748982453602,1.02018197,661.16,660.53,0.30278715]
[1748982453804,1.02018197,661.15,660.53,0.30278715]
[1748982454100,1.02018197,661.14,660.53,0.30278715]
[1748982454302,1.11238943,661.38,660.53,0.30278715]
[1748982454501,1.01964105,661.37,660.53,0.30278715]
[1748982454701,1.01964105,661.36,660.53,0.30278715]
[1748982454900,1.01964105,661.35,660.53,0.30278715]
[1748982455201,1.01964105,661.34,660.53,0.30278715]
[1748982455501,1.01964105,661.33,660.53,0.30278715]
[1748982455704,1.01964105,661.32,660.53,0.30278715]
[1748982455902,1.01964105,661.31,660.53,0.30278715]
[1748982456102,1.11238943,661.38,660.53,0.30278715]
[1748982456103,1.01922832,661.3,660.53,0.30278715]
[1748982456302,1.01922832,661.29,660.53,0.30278715]
[1748982456602,1.01922832,661.28,660.53,0.30278715]
[1748982456803,1.01922832,661.27,660.53,0.30278715]
[1748982457106,1.01922832,661.26,660.53,0.30278715]
[1748982457402,1.11134972,661.41,660.53,0.30278715]
[1748982457403,1.01922832,661.25,660.53,0.30278715]
[1748982457602,1.01922832,661.24,660.53,0.30278715]
[1748982457903,1.01922832,661.23,660.53,0.30278715]
[1748982458102,1.01922832,661.22,660.53,0.30278715]
[1748982458305,1.01922832,661.21,660.53,0.30278715]
[1748982458503,1.01922832,661.2,660.53,0.30278715]
[1748982458803,1.01922832,661.19,660.53,0.30278715]
[1748982459002,1.01922832,661.18,660.53,0.30278715]
[1748982459203,1.01922832,661.17,660.53,0.30278715]
[1748982459504,1.01922832,661.16,660.53,0.30278715]
[1748982459705,1.01922832,661.15,660.53,0.30278715]
[1748982459903,1.01922832,661.14,660.53,0.30278715]
[1748982460102,1.01871899,661.13,660.53,0.30278715]
[1748982460301,1.11102717,661.43,660.53,0.30278715]
[1748982460501,3.71005592,662.42,660.53,0.30278715]
[1748982460502,1.11102717,661.38,660.53,0.30278715]
[1748982460704,2.12972478,661.37,660.53,0.30278715]
[1748982460903,1.01869761,661.36,660.53,0.30278715]
[1748982461097,2.12972478,661.35,660.53,0.30278715]
[1748982461303,1.11102717,661.33,660.53,0.30278715]
[1748982461499,1.01869761,661.32,660.53,0.30278715]
[1748982461704,1.11102717,661.28,660.53,0.30278715]
[1748982461898,1.01869761,661.27,660.53,0.30278715]
[1748982462101,1.01869761,661.26,660.53,0.30278715]
[1748982462302,1.01869761,661.25,660.53,0.30278715]
[1748982462604,1.11102717,661.23,660.53,0.30278715]
[1748982462804,1.01869761,661.22,660.53,0.30278715]
[1748982463005,1.01869761,661.21,660.53,0.30278715]
[1748982463206,1.01869761,661.2,660.53,0.30278715]
[1748982463407,1.01869761,661.19,660.53,0.30278715]
[1748982463603,1.01869761,661.18,660.53,0.30278715]
[1748982463802,1.01869761,661.17,660.53,0.30278715]
[1748982464003,1.0173215,661.16,660.53,0.30278715]
[1748982464305,1.0173215,661.15,660.53,0.30278715]
[1748982464505,1.0173215,661.14,660.53,0.30278715]
[1748982464700,1.0173215,661.13,660.53,0.30278715]
[1748982464903,1.0173215,661.12,660.53,0.30278715]
[1748982465104,1.0173215,661.11,660.53,0.30278715]
[1748982465306,1.0173215,661.1,660.53,0.30278715]
[1748982465505,1.0173215,661.09,660.53,0.30278715]
[1748982465706,1.0173215,661.08,660.53,0.30278715]
[1748982465906,1.0173215,661.07,660.53,0.30278715]
[1748982466207,1.0173215,661.06,660.53,0.30278715]
[1748982466401,1.0173215,661.05,660.53,0.30278715]
[1748982466600,1.0173215,661.04,660.53,0.30278715]
[1748982466804,1.0173215,661.03,660.53,0.30278715]
[1748982467006,1.0173215,661.02,660.53,0.30278715]
[1748982467202,1.4831859,661.38,660.53,0.30278715]
[1748982467203,1.0173215,661.01,660.53,0.30278715]
[1748982467405,1.0173215,661.0,660.53,0.30278715]
[1748982467602,1.0173215,660.99,660.53,0.30278715]
[1748982467807,1.01569229,660.98,660.53,0.30278715]
[1748982468008,1.01569229,660.97,660.53,0.30278715]
[1748982468203,1.01569229,660.96,660.53,0.30278715]
[1748982468407,1.01569229,660.95,660.53,0.30278715]
[1748982468610,1.01569229,660.94,660.53,0.30278715]
[1748982468812,1.01569229,660.93,660.53,0.30278715]
[1748982469012,1.01569229,660.92,660.53,0.30278715]
[1748982469210,1.01569229,660.91,660.53,0.30278715]
[1748982469413,1.01569229,660.9,660.53,0.30278715]
[1748982469710,1.01569229,660.89,660.53,0.30278715]
[1748982469915,1.01569229,660.88,660.53,0.30278715]
[1748982470214,1.01569229,660.87,660.53,0.30278715]
[1748982470416,1.01569229,660.86,660.53,0.30278715]
[1748982470616,1.01569229,660.85,660.53,0.30278715]
[1748982470816,1.01569229,660.84,660.53,0.30278715]
[1748982471012,1.10744138,661.17,660.53,0.30278715]
[1748982471212,1.01473567,661.16,660.53,0.30278715]
[1748982471413,1.01473567,661.15,660.53,0.30278715]
[1748982471719,1.01476992,661.14,660.53,0.30278715]
[1748982471913,1.01476992,661.13,660.53,0.30278715]
[1748982472112,1.01476992,661.12,660.53,0.30278715]
[1748982472312,1.01476992,661.11,660.53,0.30278715]
[1748982472511,1.10614524,661.16,660.53,0.30278715]
[1748982472512,1.01476992,661.1,660.53,0.30278715]
[1748982472719,1.01476992,661.09,660.53,0.30278715]
[1748982472920,1.01476992,661.08,660.53,0.30278715]
[1748982473218,1.10614524,661.15,660.53,0.30278715]
[1748982473219,1.01476992,661.07,660.53,0.30278715]
[1748982473418,1.01476992,661.06,660.53,0.30278715]
[1748982473612,1.01476992,661.05,660.53,0.30278715]
[1748982473917,1.10614524,661.14,660.53,0.30278715]
[1748982473918,1.01476992,661.04,660.53,0.30278715]
[1748982474112,1.01476992,661.03,660.53,0.30278715]
[1748982474317,1.01476992,661.02,660.53,0.30278715]
[1748982474616,1.01476992,661.01,660.53,0.30278715]
[1748982474917,1.01476992,661.0,660.53,0.30278715]
[1748982475116,1.01476992,660.99,660.53,0.30278715]
[1748982475418,1.02334633,660.98,660.53,0.30278715]
[1748982475620,1.02334633,660.97,660.53,0.30278715]
[1748982475919,1.02334633,660.96,660.53,0.30278715]
[1748982476118,1.02334633,660.95,660.53,0.30278715]
[1748982476416,1.02334633,660.94,660.53,0.30278715]
[1748982476616,1.10568174,661.01,660.53,0.30278715]
[1748982476617,1.02334633,660.93,660.53,0.30278715]
[1748982476812,1.02334633,660.92,660.53,0.30278715]
[1748982477014,1.02334633,660.91,660.53,0.30278715]
[1748982477214,1.02334633,660.9,660.53,0.30278715]
[1748982477414,1.10568174,661.01,660.53,0.30278715]
[1748982477415,1.02334633,660.89,660.53,0.30278715]
[1748982477611,1.02334633,660.88,660.53,0.30278715]
[1748982477815,1.02334633,660.87,660.53,0.30278715]
[1748982478015,1.02334633,660.86,660.53,0.30278715]
[1748982478218,1.02334633,660.85,660.53,0.30278715]
[1748982478418,1.02334633,660.84,660.53,0.30278715]
[1748982478619,1.02334633,660.83,660.53,0.30278715]
[1748982478819,1.02334633,660.82,660.53,0.30278715]
[1748982479016,1.10568174,661.04,660.53,0.30278715]
[1748982479213,1.02212371,661.03,660.53,0.30278715]
[1748982479420,1.02212371,661.02,660.53,0.30278715]
[1748982479616,1.1052728,661.05,660.53,0.30278715]
[1748982479617,1.02212371,661.01,660.53,0.30278715]
[1748982479814,1.02212371,661.0,660.53,0.30278715]
[1748982480018,1.02212371,660.99,660.53,0.30278715]
[1748982480221,1.02212371,660.98,660.53,0.30278715]
[1748982480420,1.02212371,660.97,660.53,0.30278715]
[1748982480620,1.02212371,660.96,660.53,0.30278715]
[1748982480815,1.02212371,660.95,660.53,0.30278715]
[1748982481017,1.02212371,660.94,660.53,0.30278715]
[1748982481218,1.02212371,660.93,660.53,0.30278715]
[1748982481417,1.02212371,660.92,660.53,0.30278715]
[1748982481723,1.4831859,661.2,660.53,0.30278715]
[1748982481924,1.10518799,661.06,660.53,0.30278715]
[1748982482123,1.02204169,661.05,660.53,0.30278715]
[1748982482323,1.02204169,661.04,660.53,0.30278715]
[1748982482525,1.02204169,661.03,660.53,0.30278715]
[1748982482824,1.02204169,661.02,660.53,0.30278715]
[1748982483024,1.02204169,661.01,660.53,0.30278715]
[1748982483323,1.02204169,661.0,660.53,0.30278715]
[1748982483519,1.4831859,661.21,660.53,0.30278715]
[1748982483724,1.10517352,661.08,660.53,0.30278715]
[1748982483919,2.12638836,661.07,660.53,0.30278715]
[1748982484125,1.02121484,661.06,660.53,0.30278715]
[1748982484327,1.02121484,661.05,660.53,0.30278715]
[1748982484520,1.02121484,661.04,660.53,0.30278715]
[1748982484720,1.02121484,661.03,660.53,0.30278715]
[1748982484924,1.02121484,661.02,660.53,0.30278715]
[1748982485121,1.02121484,661.01,660.53,0.30278715]
[1748982485422,1.02121484,661.0,660.53,0.30278715]
[1748982485631,1.02156047,660.99,660.53,0.30278715]
[1748982485827,1.02156047,660.98,660.53,0.30278715]
[1748982486024,1.02156047,660.97,660.53,0.30278715]
[1748982486221,1.02156047,660.96,660.53,0.30278715]
[1748982486420,1.02156047,660.95,660.53,0.30278715]
[1748982486621,1.02156047,660.94,660.53,0.30278715]
[1748982486821,1.02156047,660.93,660.53,0.30278715]
[1748982487022,1.02156047,660.92,660.53,0.30278715]
[1748982487224,1.02156047,660.91,660.53,0.30278715]
[1748982487423,1.02156047,660.9,660.53,0.30278715]
[1748982487626,1.02156047,660.89,660.53,0.30278715]
[1748982487833,1.02156047,660.88,660.53,0.30278715]
[1748982488025,1.02156047,660.87,660.53,0.30278715]
[1748982488225,1.02156047,660.86,660.53,0.30278715]
[1748982488426,1.02156047,660.85,660.53,0.30278715]
[1748982488629,1.10554711,661.07,660.53,0.30278715]
[1748982488630,1.02156047,660.84,660.53,0.30278715]
[1748982488821,1.02156047,660.83,660.53,0.30278715]
[1748982489021,1.10554711,661.07,660.53,0.30278715]
[1748982489225,2.12746132,661.06,660.53,0.30278715]
[1748982489425,1.02191421,661.05,660.53,0.30278715]
[1748982489621,1.02191421,661.04,660.53,0.30278715]
[1748982489822,1.02191421,661.03,660.53,0.30278715]
[1748982490025,1.02191421,661.02,660.53,0.30278715]
[1748982490322,1.02191421,661.01,660.53,0.30278715]
[1748982490523,1.02191421,661.0,660.53,0.30278715]
[1748982490726,1.02191421,660.99,660.53,0.30278715]
[1748982490926,1.02191421,660.98,660.53,0.30278715]
[1748982491228,1.02191421,660.97,660.53,0.30278715]
[1748982491427,1.02191421,660.96,660.53,0.30278715]
[1748982491628,1.10554711,661.07,660.53,0.30278715]
[1748982491629,1.02191421,660.95,660.53,0.30278715]
[1748982491828,1.02191421,660.94,660.53,0.30278715]
[1748982492026,1.02191421,660.93,660.53,0.30278715]
[1748982492330,1.02191421,660.92,660.53,0.30278715]
[1748982492532,1.02191421,660.91,660.53,0.30278715]
[1748982492728,3.71005592,661.9,660.53,0.30278715]
[1748982492729,1.02191421,660.9,660.53,0.30278715]
[1748982492930,1.02191421,660.89,660.53,0.30278715]
[1748982493126,1.4831859,661.22,660.53,0.30278715]
[1748982493331,1.10602023,661.05,660.53,0.30278715]
[1748982493636,1.02188356,661.04,660.53,0.30278715]
[1748982493827,1.02188356,661.03,660.53,0.30278715]
[1748982494028,1.02188356,661.02,660.53,0.30278715]
[1748982494226,1.02188356,661.01,660.53,0.30278715]
[1748982494432,1.02188356,661.0,660.53,0.30278715]
[1748982494633,3.71005592,662.07,660.53,0.30278715]
[1748982494634,1.02188356,660.99,660.53,0.30278715]
[1748982494830,1.02188356,660.98,660.53,0.30278715]
[1748982495035,1.02188356,660.97,660.53,0.30278715]
[1748982495228,3.71005592,662.14,660.53,0.30278715]
[1748982495229,1.02188356,660.96,660.53,0.30278715]
[1748982495431,1.02188356,660.95,660.53,0.30278715]
[1748982495628,1.02188356,660.94,660.53,0.30278715]
[1748982495831,1.02188356,660.93,660.53,0.30278715]
[1748982496032,1.02188356,660.92,660.53,0.30278715]
[1748982496230,1.02188356,660.91,660.53,0.30278715]
[1748982496433,1.02188356,660.9,660.53,0.30278715]
[1748982496630,1.02188356,660.89,660.53,0.30278715]
[1748982496833,1.10602023,661.02,660.53,0.30278715]
[1748982496834,1.02188356,660.88,660.53,0.30278715]
[1748982497029,1.02207915,660.87,660.53,0.30278715]
[1748982497248,1.02207915,660.86,660.53,0.30278715]
[1748982497434,1.02207915,660.85,660.53,0.30278715]
[1748982497738,1.02207915,660.84,660.53,0.30278715]
[1748982498034,1.02207915,660.83,660.53,0.30278715]
[1748982498237,1.02207915,660.82,660.53,0.30278715]
[1748982498432,1.02207915,660.81,660.53,0.30278715]
[1748982498638,1.02207915,660.8,660.53,0.30278715]
[1748982498936,1.02207915,660.79,660.53,0.30278715]
[1748982499139,1.02207915,660.78,660.53,0.30278715]